bitfinex/quotes_BTCUSD_20220211
["timestamp","ask_amount","ask_price","bid_price","bid_amount"]
[1644563179556,0.0004676,43285.0,43283.0,0.23116509]
[1644563179757,0.04848995,43284.0,43283.0,0.23116509]
[1644563179956,0.04848995,43284.0,43283.0,0.34675209]
[1644563180216,0.04848995,43284.0,43283.0,0.71033403]
[1644563180613,0.00066948,43286.0,43283.0,0.71033403]
[1644563180812,0.07802738,43285.0,43283.0,0.29868472]
[1644563181112,0.07802738,43285.0,43282.0,0.01028776]
[1644563181511,0.07802738,43285.0,43283.0,0.23116509]
[1644563181711,0.00066948,43286.0,43283.0,0.34675209]
[1644563181912,0.06090185,43285.0,43284.0,0.05779252]
[1644563183111,0.00066948,43287.0,43284.0,0.05779252]
[1644563183311,0.00066948,43287.0,43284.0,0.17338652]
[1644563183312,0.06090185,43286.0,43284.0,0.17338652]
[1644563184259,0.06090185,43285.0,43284.0,0.17338652]
[1644563184659,0.06090185,43286.0,43284.0,0.17338652]
[1644563184859,0.06090185,43285.0,43284.0,0.17338652]
[1644563187061,0.06090185,43285.0,43284.0,0.16885314]
[1644563188413,0.04738679,43285.0,43284.0,0.16885314]
[1644563188615,0.39352694,43285.0,43284.0,0.17110347]
[1644563188815,0.04468828,43289.0,43284.0,0.17110347]
[1644563188816,0.39352694,43286.0,43284.0,0.17110347]
[1644563189014,0.36323524,43288.0,43285.0,0.0578004]
[1644563189216,0.36323524,43288.0,43285.0,0.00225031]
[1644563189217,0.32297948,43287.0,43285.0,0.00225031]
[1644563189421,0.68089693,43286.0,43285.0,0.00225031]
[1644563190816,0.35858693,43286.0,43274.0,0.3732]
[1644563191021,0.3941696,43280.0,43274.0,0.3732]
[1644563191357,0.3941696,43280.0,43272.0,0.11562386]
[1644563191759,0.3941696,43279.0,43276.0,0.1734357]
[1644563191962,0.3941696,43280.0,43276.0,0.1734357]
[1644563192161,0.3741696,43280.0,43276.0,0.1734357]
[1644563192460,0.115624,43281.0,43276.0,0.1734357]
[1644563192663,0.057811,43279.0,43276.0,0.1734357]
[1644563193461,0.057811,43279.0,43276.0,0.4034357]
[1644563193663,0.057811,43279.0,43277.0,0.057809]
[1644563193862,0.057811,43279.0,43277.0,0.05930957]
[1644563198215,0.45204537,43279.0,43277.0,0.05930957]
[1644563199262,0.77435537,43279.0,43277.0,0.05930957]
[1644563199462,0.39423437,43278.0,43277.0,0.05930957]
[1644563199662,0.39423437,43278.0,43277.0,0.00150057]
[1644563199863,0.71654437,43278.0,43277.0,0.00150057]
[1644563200462,0.39423437,43278.0,43277.0,0.00150057]
[1644563200862,0.39423437,43278.0,43276.0,0.25970033]
[1644563201067,0.39423437,43278.0,43276.0,0.26070075]
[1644563202465,0.39423437,43278.0,43276.0,0.31850866]
[1644563202715,0.39490388,43279.0,43276.0,0.31850866]
[1644563202914,0.39490388,43279.0,43277.0,0.057805]
[1644563203117,0.39423437,43279.0,43277.0,0.05880542]
[1644563204114,0.41887639,43279.0,43277.0,0.11661008]
[1644563204515,0.02464202,43278.0,43277.0,0.11661008]
[1644563204719,0.02464202,43278.0,43277.0,0.05880508]
[1644563204914,0.02464202,43279.0,43277.0,0.05880508]
[1644563205313,0.00066951,43280.0,43277.0,0.05880508]
[1644563205314,0.02464202,43278.0,43277.0,0.05880508]
[1644563205716,0.39423437,43283.0,43277.0,0.11659908]
[1644563205917,0.0004676,43280.0,43277.0,0.11659908]
[1644563206114,0.0004676,43280.0,43277.0,0.05880508]
[1644563206368,0.02464202,43279.0,43277.0,0.11659908]
[1644563206561,0.02464202,43278.0,43277.0,0.05880508]
[1644563206760,0.02464202,43278.0,43277.0,0.11660008]
[1644563206961,0.00066985,43280.0,43277.0,0.14054263]
[1644563207159,0.02464202,43279.0,43277.0,0.14054263]
[1644563207361,0.02442656,43279.0,43277.0,0.14054263]
[1644563207560,0.00066985,43280.0,43277.0,0.14054263]
[1644563207962,0.39423437,43284.0,43278.0,0.11558692]
[1644563208162,0.00066984,43281.0,43280.0,0.057794]
[1644563208362,0.00066984,43281.0,43280.0,0.05879439]
[1644563208763,0.00066984,43281.0,43280.0,0.04089013]
[1644563209261,0.39423437,43285.0,43281.0,0.05779249]
[1644563209462,0.39423437,43285.0,43284.0,0.29772063]
[1644563209661,0.39423437,43285.0,43284.0,0.29872102]
[1644563210921,0.39423437,43285.0,43284.0,0.10107694]
[1644563212725,0.46354011,43287.0,43284.0,0.43914635]
[1644563212924,0.46354011,43287.0,43284.0,0.15886594]
[1644563213124,0.46420993,43287.0,43285.0,0.05778819]
[1644563213324,0.46420993,43287.0,43285.0,0.05878853]
[1644563213725,0.46420993,43287.0,43285.0,0.11657553]
[1644563213961,0.06930574,43287.0,43285.0,0.11657553]
[1644563214364,0.46354011,43287.0,43285.0,0.11657553]
[1644563214563,0.06930574,43287.0,43285.0,0.16657553]
[1644563215967,0.06930574,43287.0,43286.0,0.35589963]
[1644563216163,0.06930574,43287.0,43286.0,0.35689997]
[1644563216364,0.06930574,43287.0,43286.0,0.45689997]
[1644563216564,0.06930574,43287.0,43286.0,0.54717997]
[1644563217168,0.01066981,43289.0,43286.0,0.54717997]
[1644563217364,0.01066981,43289.0,43287.0,0.17334071]
[1644563217622,0.01,43289.0,43287.0,0.22434099]
[1644563218618,0.01,43289.0,43288.0,0.34252252]
[1644563218817,0.01,43289.0,43288.0,0.44352278]
[1644563219621,0.01,43289.0,43288.0,0.34352278]
[1644563219818,0.01,43289.0,43288.0,0.44352278]
[1644563220624,0.01,43289.0,43288.0,0.94352278]
[1644563221224,0.01,43289.0,43287.0,0.22334071]
[1644563221463,0.01,43289.0,43288.0,0.00066694]
[1644563222664,0.05653689,43289.0,43288.0,0.00066694]
[1644563222865,0.05653689,43289.0,43288.0,0.15066694]
[1644563223065,0.0006698,43291.0,43289.0,0.957775]
[1644563223265,0.0006698,43291.0,43290.0,0.057775]
[1644563223463,0.0006698,43291.0,43290.0,0.05844194]
[1644563223664,0.08929412,43294.0,43290.0,0.05844194]
[1644563223865,0.00066979,43293.0,43291.0,0.67759458]
[1644563224066,0.00066979,43293.0,43291.0,0.72826152]
[1644563224266,0.00066979,43293.0,43291.0,0.84381231]
[1644563224469,0.00066979,43293.0,43292.0,0.057776]
[1644563224666,0.39423437,43296.0,43293.0,0.9]
[1644563224667,0.05560455,43296.0,43293.0,0.9]
[1644563224873,0.44271781,43304.0,43294.0,0.15]
[1644563224874,0.05560455,43302.0,43294.0,0.15]
[1644563225131,0.36709688,43307.0,43297.0,0.06783494]
[1644563225324,0.15607897,43309.0,43298.0,0.6595259]
[1644563225522,0.36709688,43308.0,43298.0,0.6601928]
[1644563225725,0.36709688,43308.0,43305.0,0.32221192]
[1644563225924,0.04496857,43309.0,43305.0,0.37997592]
[1644563225925,0.01,43309.0,43305.0,0.37997592]
[1644563226324,0.01,43309.0,43305.0,0.69162142]
[1644563227125,0.01,43309.0,43305.0,0.43773985]
[1644563227429,0.01,43309.0,43305.0,0.66773985]
[1644563227627,0.01,43309.0,43306.0,0.057755]
[1644563228227,0.01,43309.0,43307.0,0.29043094]
[1644563228427,0.01,43309.0,43308.0,0.057756]
[1644563228626,0.01,43309.0,43308.0,0.03382875]
[1644563231365,0.01,43309.0,43306.0,0.60929689]
[1644563231564,0.34425455,43308.0,43306.0,0.60929689]
[1644563232065,0.34425455,43308.0,43307.0,0.057754]
[1644563232265,0.34425455,43308.0,43307.0,0.51768277]
[1644563232469,0.01,43309.0,43307.0,0.51768277]
[1644563232470,0.35490424,43309.0,43307.0,0.51768277]
[1644563232730,0.01064969,43309.0,43307.0,0.51768277]
[1644563232926,0.01064969,43309.0,43308.0,0.35611751]
[1644563233327,0.01,43309.0,43308.0,0.43890245]
[1644563233528,0.01,43309.0,43308.0,0.35611751]
[1644563234428,0.01,43309.0,43308.0,0.43275787]
[1644563236027,0.0001,43309.0,43308.0,0.43275787]
[1644563236228,0.00056759,43311.0,43309.0,0.9]
[1644563236465,0.00056759,43311.0,43310.0,0.41669451]
[1644563236866,0.0001,43311.0,43310.0,0.51669451]
[1644563237268,0.003,43316.0,43314.0,0.15]
[1644563237468,0.003,43316.0,43314.0,0.39479396]
[1644563237672,0.003,43316.0,43314.0,0.44479396]
[1644563237673,0.002,43316.0,43314.0,0.44479396]
[1644563237867,0.001,43317.0,43316.0,1.05]
[1644563238067,0.001,43317.0,43316.0,1.1463]
[1644563238267,0.002,43319.0,43316.0,1.82742118]
[1644563238569,0.002,43319.0,43316.0,1.88514818]
[1644563238767,0.002,43319.0,43317.0,0.107728]
[1644563238968,0.002,43319.0,43318.0,0.0463]
[1644563239571,0.002,43319.0,43318.0,0.42586312]
[1644563239971,0.002,43319.0,43318.0,0.52586312]
[1644563240919,0.03702939,43324.0,43319.0,0.95773077]
[1644563241114,0.03702939,43324.0,43319.0,1.11949077]
[1644563241115,0.101,43321.0,43319.0,1.11949077]
[1644563241315,0.01594007,43321.0,43320.0,0.2979996]
[1644563243116,0.01594007,43321.0,43320.0,0.64777108]
[1644563243517,0.01594007,43321.0,43320.0,0.2979996]
[1644563244463,0.01594007,43321.0,43320.0,0.64982587]
[1644563244662,0.01594007,43321.0,43320.0,0.74982587]
[1644563244864,0.00167237,43323.0,43320.0,0.79982587]
[1644563245063,0.00100237,43324.0,43321.0,0.19170898]
[1644563245266,0.00100237,43324.0,43323.0,0.15]
[1644563245465,0.00100237,43324.0,43323.0,0.63649974]
[1644563245662,0.00100237,43324.0,43323.0,0.68649974]
[1644563245862,0.00100237,43324.0,43323.0,0.78649974]
[1644563246062,0.00100237,43324.0,43323.0,1.26942222]
[1644563246263,0.00100237,43324.0,43323.0,1.35544222]
[1644563246663,2.37e-06,43324.0,43323.0,1.35544222]
[1644563246863,0.001,43327.0,43323.0,1.35544222]
[1644563246864,0.0006727,43326.0,43325.0,0.20771804]
[1644563247063,0.0006727,43326.0,43325.0,0.58561662]
[1644563247263,0.0006727,43326.0,43325.0,0.68561662]
[1644563247724,0.06900237,43328.0,43325.0,0.85106062]
[1644563247927,0.06900237,43328.0,43326.0,0.23089121]
[1644563248124,0.06967506,43328.0,43326.0,0.23089121]
[1644563248923,0.06900237,43328.0,43326.0,0.23089121]
[1644563249525,0.06900237,43328.0,43326.0,0.17316921]
[1644563250826,0.06900237,43328.0,43327.0,0.057727]
[1644563251464,0.06900237,43328.0,43327.0,0.40287791]
[1644563251964,0.06900237,43328.0,43327.0,0.73287791]
[1644563252970,0.06900237,43328.0,43327.0,0.387727]
[1644563254469,0.06900237,43328.0,43327.0,0.287727]
[1644563254668,0.06900237,43328.0,43327.0,0.387727]
[1644563255715,0.06900237,43328.0,43327.0,0.287727]
[1644563255915,0.06900237,43328.0,43327.0,0.387727]
[1644563256515,0.06900237,43328.0,43327.0,0.33]
[1644563256716,0.06900237,43328.0,43327.0,0.38]
[1644563257115,0.06900237,43328.0,43327.0,0.28]
[1644563257519,0.06900237,43328.0,43327.0,0.23]
[1644563258123,0.06900237,43328.0,43327.0,0.1854129]
[1644563258124,0.41827288,43328.0,43327.0,0.1854129]
[1644563258321,0.39131237,43328.0,43327.0,0.1854129]
[1644563259773,0.41827288,43328.0,43327.0,0.1754129]
[1644563260071,0.39131237,43328.0,43327.0,0.1754129]
[1644563260270,0.76296254,43328.0,43327.0,0.1754129]
[1644563260470,0.79926254,43328.0,43327.0,0.1754129]
[1644563260872,0.17391593,43332.0,43328.0,0.9]
[1644563261076,0.39543024,43334.0,43329.0,0.322231]
[1644563261077,0.002,43334.0,43329.0,0.322231]
[1644563261275,0.00067268,43330.0,43329.0,0.372231]
[1644563261473,0.00067268,43330.0,43329.0,0.322231]
[1644563261672,0.00067268,43330.0,43329.0,0.3220221]
[1644563261871,0.00067268,43330.0,43329.0,0.66136649]
[1644563262072,0.00067268,43330.0,43329.0,0.66136639]
[1644563262272,0.002,43334.0,43329.0,0.66136639]
[1644563262273,0.002,43334.0,43330.0,0.37974463]
[1644563262474,0.00046643,43332.0,43331.0,0.322004]
[1644563263127,0.00046643,43332.0,43331.0,0.71558879]
[1644563263431,0.001,43335.0,43331.0,1.51912597]
[1644563263628,0.00046644,43334.0,43332.0,0.05771005]
[1644563263827,0.001,43336.0,43333.0,0.65291887]
[1644563264025,0.001,43336.0,43333.0,0.70291887]
[1644563264227,0.001,43348.0,43333.0,0.70291887]
[1644563264228,0.05,43362.0,43335.0,1.22197]
[1644563264431,0.001,43370.0,43342.0,0.2]
[1644563264432,0.1591817,43358.0,43342.0,0.2]
[1644563264638,0.1591817,43358.0,43354.0,0.5786]
[1644563264827,0.1591817,43358.0,43355.0,0.368093]
[1644563265028,0.01,43369.0,43355.0,0.368093]
[1644563265226,0.01,43369.0,43355.0,0.468093]
[1644563265427,0.01,43369.0,43356.0,0.55]
[1644563265626,0.01,43369.0,43353.0,0.230746]
[1644563265827,0.01,43369.0,43355.0,0.321789]
[1644563265828,0.05,43365.0,43355.0,0.321789]
[1644563266032,0.01,43369.0,43354.0,0.0463]
[1644563266033,0.05,43361.0,43354.0,0.0463]
[1644563266226,0.01,43369.0,43355.0,0.667288]
[1644563266227,0.00046637,43364.0,43355.0,0.667288]
[1644563266470,0.2742757,43362.0,43358.0,0.115388]
[1644563266671,0.2742757,43362.0,43360.0,0.32175]
[1644563266870,0.05,43361.0,43353.0,0.11539962]
[1644563267073,0.2742757,43362.0,43347.0,0.07414636]
[1644563267074,0.05,43354.0,43347.0,0.07414636]
[1644563267270,0.2742757,43362.0,43347.0,0.07414636]
[1644563267271,0.05,43357.0,43347.0,0.07414636]
[1644563267468,0.05,43357.0,43344.0,0.74464835]
[1644563267671,0.10046637,43362.0,43344.0,0.74464835]
[1644563267672,0.05,43353.0,43348.0,0.11542]
[1644563267868,0.00046637,43362.0,43348.0,0.11542]
[1644563267869,0.05,43357.0,43348.0,0.11542]
[1644563268468,0.00067292,43353.0,43348.0,0.11542]
[1644563268674,0.25861378,43353.0,43352.0,0.3084891]
[1644563269269,0.25861378,43353.0,43348.0,0.17313128]
[1644563269470,0.057714,43360.0,43348.0,0.11542]
[1644563269471,0.107714,43360.0,43348.0,0.11542]
[1644563269671,0.00046418,43355.0,43348.0,0.11542]
[1644563269871,0.00046418,43355.0,43349.0,0.271413]
[1644563270124,0.00046418,43355.0,43348.0,0.11542]
[1644563270320,0.00046418,43355.0,43349.0,0.05771031]
[1644563270520,0.05,43360.0,43349.0,0.05771031]
[1644563270720,0.05,43360.0,43352.0,0.37412888]
[1644563270920,0.30742531,43354.0,43352.0,0.37412888]
[1644563271120,0.30742531,43354.0,43349.0,0.05771031]
[1644563271922,0.30696147,43354.0,43350.0,0.057707]
[1644563272122,0.30742531,43354.0,43351.0,0.31315824]
[1644563273022,0.30696147,43354.0,43351.0,0.31315824]
[1644563275270,0.30696147,43354.0,43350.0,0.057707]
[1644563276473,0.30696147,43354.0,43351.0,0.3321218]
[1644563276870,0.30696147,43354.0,43351.0,0.53929214]
[1644563276871,0.30763448,43354.0,43351.0,0.53929214]
[1644563277071,4.918e-05,43354.0,43351.0,0.65470314]
[1644563277370,4.918e-05,43354.0,43351.0,0.4475328]
[1644563277622,4.918e-05,43354.0,43353.0,0.271075]
[1644563277820,0.0463,43363.0,43351.0,0.115411]
[1644563278125,0.001,43370.0,43354.0,0.29211364]
[1644563278126,0.34898238,43361.0,43354.0,0.29211364]
[1644563278321,0.34898238,43361.0,43351.0,0.17929712]
[1644563278619,0.34898238,43361.0,43355.0,0.057702]
[1644563278819,0.34898238,43361.0,43357.0,0.1154]
[1644563279320,0.372252,43360.0,43357.0,0.1154]
[1644563279719,0.372252,43360.0,43356.0,0.29655944]
[1644563280222,0.34898238,43361.0,43356.0,0.29655944]
[1644563280820,0.322252,43368.0,43357.0,0.08770677]
[1644563281020,0.2254,43369.0,43357.0,0.08770677]
[1644563281021,0.11,43369.0,43357.0,0.08770677]
[1644563281220,0.322252,43368.0,43367.0,0.39262468]
[1644563281469,1.114012,43368.0,43357.0,0.057707]
[1644563281673,0.05067383,43365.0,43357.0,0.057707]
[1644563281870,0.322252,43359.0,43357.0,0.057707]
[1644563282069,0.322252,43364.0,43357.0,0.057707]
[1644563282571,0.322252,43362.0,43356.0,0.40848597]
[1644563282971,0.33152305,43361.0,43356.0,0.40848597]
[1644563283169,0.322252,43360.0,43356.0,0.40848597]
[1644563284075,0.05,43359.0,43351.0,0.115419]
[1644563284276,0.05,43359.0,43349.0,0.345425]
[1644563284277,0.322252,43358.0,43349.0,0.345425]
[1644563284474,0.0463,43357.0,43349.0,0.23]
[1644563284672,0.322252,43356.0,43349.0,0.23]
[1644563284871,0.322252,43355.0,43349.0,0.23]
[1644563285128,0.26443418,43354.0,43353.0,0.38029063]
[1644563285619,0.04697387,43356.0,43353.0,0.38029063]
[1644563286222,0.0463,43356.0,43353.0,0.38029063]
[1644563286822,0.322252,43355.0,43353.0,0.38029063]
[1644563289378,0.31852994,43356.0,43353.0,0.38029063]
[1644563289577,0.322252,43355.0,43353.0,0.38029063]
[1644563289780,0.322252,43354.0,43353.0,0.38029063]
[1644563289977,0.32155606,43356.0,43353.0,0.38029063]
[1644563290179,0.322252,43355.0,43353.0,0.38029063]
[1644563290377,0.30155606,43356.0,43353.0,0.38029063]
[1644563290579,0.322252,43355.0,43353.0,0.38029063]
[1644563290778,0.322252,43354.0,43353.0,0.38029063]
[1644563290979,0.5,43365.0,43353.0,0.65136363]
[1644563291179,0.5,43365.0,43356.0,0.057702]
[1644563291180,0.322252,43363.0,43356.0,0.057702]
[1644563291683,0.5,43364.0,43356.0,0.057702]
[1644563291883,0.00269483,43367.0,43363.0,0.3948716]
[1644563292079,0.69176,43366.0,43364.0,0.270989]
[1644563292279,0.69176,43366.0,43363.0,0.4525626]
[1644563292722,0.322252,43365.0,43363.0,0.4525626]
[1644563292924,0.322252,43365.0,43363.0,0.057691]
[1644563293724,0.322252,43365.0,43358.0,0.115406]
[1644563293725,0.05,43364.0,43358.0,0.115406]
[1644563293924,0.05,43364.0,43353.0,0.28724397]
[1644563293925,0.437675,43363.0,43353.0,0.28724397]
[1644563294225,0.27906648,43357.0,43353.0,0.25724397]
[1644563294427,0.322252,43356.0,43353.0,0.25724397]
[1644563294827,0.322252,43356.0,43351.0,0.11608808]
[1644563295625,0.33745235,43357.0,43351.0,0.11608808]
[1644563295825,0.33677848,43357.0,43351.0,0.4964122]
[1644563296368,0.00067387,43356.0,43351.0,0.4964122]
[1644563296971,0.33616396,43357.0,43351.0,0.4964122]
[1644563297371,0.00067387,43356.0,43351.0,0.4964122]
[1644563298171,0.33616396,43357.0,43351.0,0.49641218]
[1644563298573,0.05838587,43356.0,43351.0,0.49641218]
[1644563298974,0.00067387,43356.0,43351.0,0.49641218]
[1644563299374,0.0463,43358.0,43351.0,0.49641218]
[1644563299775,0.00067387,43356.0,43351.0,0.49641218]
[1644563300620,0.05771,43358.0,43351.0,0.49641218]
[1644563300816,0.00067387,43356.0,43351.0,0.49641218]
[1644563301023,0.00067387,43356.0,43352.0,0.27108]
[1644563301218,0.00067387,43356.0,43355.0,0.08773047]
[1644563301418,0.00067387,43356.0,43355.0,0.271059]
[1644563301718,0.00067387,43356.0,43353.0,0.00066604]
[1644563301719,0.00067387,43356.0,43354.0,0.328768]
[1644563301918,0.322252,43363.0,43354.0,0.28589467]
[1644563302122,0.807167,43366.0,43354.0,0.28589467]
[1644563302123,0.322252,43360.0,43354.0,0.28589467]
[1644563302321,0.3730496,43362.0,43354.0,0.28589467]
[1644563302719,0.322252,43361.0,43354.0,0.28589467]
[1644563303123,0.322252,43361.0,43354.0,0.057703]
[1644563303322,0.05838086,43360.0,43354.0,0.057703]
[1644563303521,0.322252,43359.0,43354.0,0.057703]
[1644563304168,0.00067386,43360.0,43354.0,0.057703]
[1644563304368,0.322252,43359.0,43354.0,0.057703]
[1644563304569,0.00067386,43359.0,43354.0,0.057703]
[1644563304771,0.322252,43358.0,43354.0,0.057703]
[1644563305267,0.322252,43356.0,43354.0,0.057703]
[1644563305869,0.05838187,43358.0,43354.0,0.057703]
[1644563306068,0.322252,43357.0,43354.0,0.057703]
[1644563306572,0.322252,43357.0,43356.0,0.40045759]
[1644563306771,0.057708,43358.0,43356.0,0.40045759]
[1644563307069,0.05838187,43358.0,43356.0,0.40045759]
[1644563307273,0.322252,43357.0,43356.0,0.40045759]
[1644563308220,0.322252,43357.0,43355.0,0.05837202]
[1644563309419,0.322252,43356.0,43355.0,0.05837202]
[1644563309619,0.05838187,43358.0,43355.0,0.05837202]
[1644563309826,0.00067387,43358.0,43356.0,0.34418079]
[1644563310019,0.00067387,43358.0,43356.0,0.057702]
[1644563310325,1.18176,43366.0,43357.0,0.31649132]
[1644563310521,0.00067386,43359.0,43357.0,0.31649132]
[1644563310720,0.00067386,43359.0,43358.0,0.78725232]
[1644563311019,0.00067386,43359.0,43358.0,1.11598432]
[1644563311222,0.00067386,43359.0,43358.0,1.19558973]
[1644563311475,0.34063191,43365.0,43360.0,0.05769815]
[1644563311675,0.00067385,43361.0,43360.0,0.05769815]
[1644563311874,0.00067385,43361.0,43360.0,0.32871615]
[1644563312674,0.057698,43365.0,43360.0,0.32871615]
[1644563312875,0.11607384,43363.0,43360.0,0.11539815]
[1644563313274,0.00067384,43363.0,43362.0,0.271005]
[1644563313473,0.00067384,43363.0,43362.0,0.32869848]
[1644563313874,0.057695,43365.0,43362.0,0.32869848]
[1644563314076,0.05836883,43365.0,43363.0,0.328693]
[1644563314275,0.322252,43364.0,43363.0,0.057695]
[1644563314474,0.05836883,43365.0,43363.0,0.057695]
[1644563314874,0.322252,43364.0,43363.0,0.057695]
[1644563316322,0.322235,43364.0,43363.0,0.057695]
[1644563316520,0.115393,43365.0,43363.0,0.057695]
[1644563316720,0.322235,43364.0,43363.0,0.287695]
[1644563318023,0.69243383,43366.0,43364.0,0.275993]
[1644563318223,0.69243383,43366.0,43365.0,0.275985]
[1644563318624,0.69176,43366.0,43365.0,0.275985]
[1644563318866,0.69176,43366.0,43365.0,0.64959387]
[1644563319768,0.69176,43366.0,43365.0,0.89761879]
[1644563319967,0.749449,43366.0,43365.0,0.89761879]
[1644563320172,0.749449,43366.0,43365.0,0.62163379]
[1644563320370,0.749449,43366.0,43365.0,0.37360887]
[1644563320969,0.749449,43366.0,43365.0,0.64959387]
[1644563321168,0.749449,43366.0,43365.0,0.37360887]
[1644563321368,0.749449,43366.0,43365.0,0.96815841]
[1644563321570,0.69176,43366.0,43365.0,0.64959387]
[1644563323020,0.69176,43366.0,43365.0,0.96860726]
[1644563323421,0.69176,43366.0,43365.0,0.64959387]
[1644563324021,0.69176,43366.0,43365.0,0.74361387]
[1644563325424,0.69176,43366.0,43365.0,0.64959387]
[1644563326667,0.69176,43366.0,43365.0,0.74959387]
[1644563326868,0.69176,43366.0,43365.0,1.11939531]
[1644563327066,0.69176,43366.0,43365.0,0.79959387]
[1644563334271,0.69176,43366.0,43365.0,0.69959387]
[1644563334474,0.69176,43366.0,43365.0,0.64959387]
[1644563334872,0.69176,43366.0,43365.0,0.79959387]
[1644563335071,0.69176,43366.0,43365.0,0.79949398]
[1644563336873,0.69176,43366.0,43365.0,0.74959387]
[1644563339721,0.69176,43366.0,43365.0,0.79959387]
[1644563342982,0.69176,43366.0,43365.0,0.74959387]
[1644563343773,0.69176,43366.0,43365.0,0.64959387]
[1644563344972,0.69165674,43366.0,43365.0,0.64959387]
[1644563347021,0.69165674,43366.0,43365.0,0.69959387]
[1644563347224,0.69165674,43366.0,43365.0,0.76243387]
[1644563347423,0.69165674,43366.0,43365.0,1.07941555]
[1644563348223,0.69165674,43366.0,43365.0,0.76226616]
[1644563348423,0.69165674,43366.0,43365.0,0.69942616]
[1644563349072,0.69165674,43366.0,43365.0,0.79942616]
[1644563349873,0.002,43374.0,43366.0,1.23365881]
[1644563350081,0.002,43374.0,43368.0,0.057678]
[1644563350272,0.00439136,43374.0,43369.0,0.7176823]
[1644563350474,0.00439136,43374.0,43370.0,0.0880456]
[1644563350670,0.00439136,43374.0,43371.0,0.275938]
[1644563350869,0.00439136,43374.0,43372.0,0.62621729]
[1644563351070,0.00439136,43374.0,43372.0,0.62688297]
[1644563351071,0.002,43374.0,43372.0,0.62688297]
[1644563351274,0.00027918,43375.0,43372.0,0.72188297]
[1644563351473,0.00027918,43375.0,43373.0,0.275923]
[1644563351674,0.00027918,43375.0,43373.0,0.27658866]
[1644563351871,0.00027918,43375.0,43374.0,0.275916]
[1644563352075,0.00027918,43375.0,43374.0,0.27658166]
[1644563352719,0.00027918,43375.0,43374.0,0.33425266]
[1644563353520,0.00027918,43375.0,43374.0,0.6591849]
[1644563353720,0.00027918,43375.0,43374.0,0.7591849]
[1644563354120,0.00045924,43382.0,43378.0,0.07171497]
[1644563354323,0.00045924,43382.0,43379.0,0.275876]
[1644563354921,0.057673,43381.0,43379.0,0.275876]
[1644563356123,0.00045924,43382.0,43379.0,0.275876]
[1644563356370,0.00045924,43382.0,43379.0,0.67530479]
[1644563356569,0.00045924,43382.0,43379.0,0.73297479]
[1644563357271,0.00045924,43382.0,43381.0,0.33188877]
[1644563357470,0.00045924,43382.0,43381.0,0.00066562]
[1644563357871,0.05812824,43382.0,43381.0,0.27652662]
[1644563358071,0.00045924,43382.0,43381.0,0.27652662]
[1644563358270,0.00045924,43382.0,43381.0,0.00066562]
[1644563358473,0.00045924,43382.0,43381.0,0.27652662]
[1644563358676,0.00045924,43382.0,43381.0,0.00066562]
[1644563358875,0.32269424,43382.0,43381.0,0.00066562]
[1644563359673,0.69013892,43382.0,43381.0,0.00066562]
[1644563359873,0.32269424,43382.0,43381.0,0.00066562]
[1644563360131,0.42412911,43382.0,43381.0,0.00066562]
[1644563360425,0.32239424,43382.0,43381.0,0.00066562]
[1644563361426,0.42412911,43382.0,43381.0,0.00066562]
[1644563361625,0.47412911,43382.0,43381.0,0.23066562]
[1644563362324,0.37239424,43382.0,43381.0,0.23066562]
[1644563365669,0.32299424,43382.0,43381.0,0.23066562]
[1644563366269,0.37299424,43382.0,43381.0,0.23066562]
[1644563367718,0.32299424,43382.0,43381.0,0.23066562]
[1644563371024,0.62077851,43382.0,43381.0,0.23066562]
[1644563371472,0.72251338,43382.0,43381.0,0.23066562]
[1644563371873,0.47472911,43382.0,43381.0,0.23066562]
[1644563372272,0.37299424,43382.0,43381.0,0.23066562]
[1644563373474,0.41929424,43382.0,43381.0,0.23066562]
[1644563373874,0.41929424,43382.0,43381.0,0.2306656]
[1644563374479,0.57102911,43382.0,43381.0,0.2306656]
[1644563374674,0.57102911,43382.0,43381.0,0.1406656]
[1644563374874,0.52102911,43382.0,43381.0,0.1406656]
[1644563379068,0.47102911,43382.0,43381.0,0.1406656]
[1644563379669,0.52102911,43382.0,43381.0,0.1406656]
[1644563379872,0.4884474,43382.0,43381.0,0.1406656]
[1644563382170,0.4384474,43382.0,43381.0,0.1406656]
[1644563382822,0.72391738,43382.0,43381.0,0.1406656]
[1644563383020,0.72391738,43382.0,43381.0,0.14066558]
[1644563383021,0.87565225,43382.0,43381.0,0.14066558]
[1644563383419,0.92565225,43382.0,43381.0,0.14066558]
[1644563384019,0.92565225,43382.0,43381.0,0.00066558]
[1644563385025,0.59018227,43382.0,43381.0,0.00066558]
[1644563385424,0.4884474,43382.0,43381.0,0.00066558]
[1644563387875,0.4384474,43382.0,43381.0,0.00066558]
[1644563389477,0.3921474,43382.0,43381.0,0.00066558]
[1644563390724,0.4421474,43382.0,43381.0,0.00066558]
[1644563391926,0.88490966,43382.0,43381.0,0.00066558]
[1644563392124,0.4421474,43382.0,43381.0,0.00066558]
[1644563392725,0.83491865,43382.0,43381.0,0.00066558]
[1644563393125,0.49388227,43382.0,43381.0,0.00066558]
[1644563394372,0.49388227,43382.0,43381.0,0.23066558]
[1644563395172,0.17164727,43382.0,43381.0,0.29451846]
[1644563395372,0.0699124,43382.0,43381.0,0.29451846]
[1644563395976,0.0699124,43382.0,43381.0,0.50652658]
[1644563396173,0.0699124,43382.0,43381.0,0.23066556]
[1644563396374,0.0699124,43382.0,43381.0,0.50652656]
[1644563396675,0.0699124,43382.0,43381.0,0.23066556]
[1644563397275,0.0699124,43382.0,43381.0,0.60946355]
[1644563397722,0.0699124,43382.0,43381.0,0.23066556]
[1644563399122,0.0699124,43382.0,43381.0,0.55730304]
[1644563399325,0.00075924,43382.0,43381.0,0.55730304]
[1644563399523,0.00075924,43382.0,43381.0,0.23066556]
[1644563400522,0.00075924,43382.0,43381.0,0.50652656]
[1644563400922,0.00075924,43382.0,43381.0,0.37696556]
[1644563401129,0.00075924,43382.0,43381.0,0.65282656]
[1644563401370,0.00075924,43382.0,43381.0,0.72804061]
[1644563402572,0.00075924,43382.0,43381.0,0.37696556]
[1644563402773,0.00075924,43382.0,43381.0,0.55282656]
[1644563402973,0.00075924,43382.0,43381.0,0.37696556]
[1644563403378,0.01027888,43389.0,43381.0,0.77362854]
[1644563403580,0.00253384,43390.0,43387.0,0.9]
[1644563403780,0.1521161,43392.0,43389.0,0.9]
[1644563403974,0.1521161,43392.0,43390.0,0.322091]
[1644563403975,0.1524083,43392.0,43390.0,0.322091]